{"text_format":"1","workbook":"xlsx","n_sheets":7,"sheets":["DRESSAGE","CSO","CROSS","EQUIFUN","ATTELAGE","COMBINE","COMBINE FINAL"],"not_rendered":{"charts":0,"images":0,"macros":1,"external_links":0,"defined_names":4,"comments":0,"pivot_tables":0},"unopened":[],"bounds":{"document_bytes":16777216,"sheet_cells":100000,"rows_first":2000,"rows_last":500,"rows_between":2000,"halvings":0,"cell_chars":16384,"cell_head_chars":4096},"cells_cut":0,"cells_raw":0,"read":"whole","date_system":"1900"}

{"sheet":"DRESSAGE","index":0,"n_rows":97,"n_cols":10,"rows_kept":97,"cut":false,"hidden":false,"merged":[[0,0,0,9],[1,0,1,9],[2,0,2,9]]}
["CHAMPIONNAT DE FRANCE SPORT ADAPTE EQUITATION"]
["19 et 20 JUIN 2014 - LES RENES DE LA VIE - SAINT LO"]
["DRESSAGE - DIVISION 3 JEUNES"]
[]
[]
[null,"Nombre de partants :",{"$f":"COUNTA(B68:B97)","v":7}]
["Dossard","Cavalier","Cheval","Association","Juge 1","Pénal.","Juge 2","Pénal.","TOTAL","Classement"]
[1,"GRAMONT Florian","TIC","APEI Centre Manche IME La Fresnelière",123,null,124,null,{"$f":"(E8-F8+G8-H8)/2","v":123.5}]
[2,"COTENTIN Pierre-Louis","INDIENNE","APEI Centre Manche IME La Fresnelière",126,null,118,null,122]
[3,"LEBACHELEY Emilia","POLY","APEI Centre Manche IME La Fresnelière",122,null,121,null,121.5]
[4,"DUFOUR Robert","NOKER","APEI Centre Manche IME La Fresnelière",120,null,127,null,123.5]
[5,"FOURNIER Samantha","OPERA","APEI Centre Manche IME La Fresnelière",129,null,137,null,133]
[6,"GAILDRAT Félix","PERSO PAL","Le pied à l'étrier",114,null,111,1,112]
[7,"HARLEY Joyan","PERSO PAL","Le pied à l'étrier",120,null,116,null,118]
[8,"HAZI Samy","PERSO PAL","Le pied à l'étrier",130,null,129,null,129.5]
[9,"POWER Wayne","PERSO PAL","Le pied à l'étrier",113,2,117,4,112]
[10,"DIDIER Jérémie","OSIRIS","EYBENS Sport adapté",88,2,86,3,84.5]
[11,"ESTEVES Manuel","PERSO TILLEUILS","Centre Equestre des Tilleuls",113,null,118,null,115.5]
[12,"DIAWARA Kalilou","PERSO TILLEUILS","Centre Equestre des Tilleuls",122,null,117,null,119.5]
[13,"FERRARY Aurore","PERSO TILLEUILS","Centre Equestre des Tilleuls",91,5,97,4,89.5]
[14,"BANANI Jad","PERSO TILLEUILS","Centre Equestre des Tilleuls",117,null,110,null,113.5]
[15,"PETIT FLEURY Emilie","PERSO TILLEUILS","Centre Equestre des Tilleuls",92,6,88,null,87]
[16,"BILLERES Jessica","PERSO TILLEUILS","Centre Equestre des Tilleuls",129,null,131,null,130]
[17,"MONNIER Nicolas","NO NAME","ASAL 39",122,null,124,null,123]
[18,"MAHAMDI Nassim","NO NAME","ASAL 39",115,null,125,null,120]
[19,"VARIN Fanny","INDIENNE","Les rênes de la vie (SAISMO 21)",111,null,120,1,115]
[20,"Brisset Lambert","TIC","Les rênes de la vie (SAISMO 21)",115,null,112,2,112.5]
[21,"BENADJI Nabil","NENUPHAR","Coppe Atout Sport",120,null,122,2,120]
[22,"BOSCHE Nicolas","QUETZAL","Coppe Atout Sport",102,null,93,6,94.5]
[23,"BONTE Charlotte","NENUPHAR","Coppe Atout Sport",113,2,118,null,114.5]
[24,"DUPORTAIL Emeline","QUETZAL","Coppe Atout Sport",110,null,111,null,110.5]
[25,"DUPORT Sébastien","KERIS","Coppe Atout Sport",102,null,73,22,76.5]
[26,"POUCHELE Ophélie","MULTAN","Coppe Atout Sport",110,null,122,null,116]
[27,"STAESSEN Cédric","OSIRIS","Coppe Atout Sport",124,null,121,null,122.5]
[28,"CARNEY Amandine","MULTAN","Coppe Atout Sport",96,1,103,null,99]
[29,"NOYELLE Guillaume","MULTAN","Coppe Atout Sport",108,null,121,null,114.5]
[30,"VANBLEU Jérémy","NENUPHAR","Coppe Atout Sport",122,null,122,null,122]
[31,"VIDEAU Appoline","NO NAME","Les rênes de la vie (Les Pieux)",92,4,90,4,87]
[32,"GARNIER Gwendoline","KERIS","Association Sportive IME de Quimperlé",105,1,107,null,105.5]
[33,"RIVALLAIN Irène","KERIS","Association Sportive IME de Quimperlé",114,null,122,null,{"$f":"(E40-F40+G40-H40)/2","v":118}]
[34,"FOLLIOT Sandy","IROINE","APEI Centre Manche SESSAD",126,null,128,null,127]
[35,"DUVAL Jérémy","JIMBA","APEI Centre Manche SESSAD",104,null,113,null,108.5]
[36,"MABIRE Léo","JIMBA","APEI Centre Manche SESSAD",123,null,121,null,122]
[37,"BIREE Nicolas","TIC","APEI Centre Manche SESSAD",122,null,123,null,122.5]
[38,"ROGER Lucas","POLY","APEI Centre Manche SESSAD",115,null,127,null,121]
[39,"DUBOURGUAIS Dylan","TIC","APEI Centre Manche SESSAD",126,null,122,null,124]
[40,"METAIRIE Manon","POLY","APEI Centre Manche IME Maurice Marie",100,null,118,null,109]
[41,"DESFONTAINES Kelly","POLY","APEI Centre Manche IME Maurice Marie",101,null,113,null,107]
[42,"FLEUNY Louis","OPERA","APEI Centre Manche IME Maurice Marie",120,null,112,null,116]
[43,"SUZANNE Rémi","NOKER","APEI Centre Manche IME Maurice Marie",113,null,117,null,115]
[44,"PLEY Jean-Claude","NOKER","APEI Centre Manche IME Maurice Marie",107,null,112,null,109.5]
[45,"BOCHKOVITCH Maud","LOOPING","Tropagalo",123,null,114,null,118.5]
[46,"SOLER Mathilde","NOISETTE","Tropagalo",109,null,117,null,113]
[47,"OLIVIER Alexandre","OSIRIS","Tropagalo",96,1,115,null,105]
[48,"NONCHE Nicolas","MULTAN","GISORS SPORT",null,null,null,null,0,"NP"]
[49,"MAYEUR Loïc","JIMY","GISORS SPORT",118,null,126,null,122]
[50,"STRADY Ryan","OSIRIS","GISORS SPORT",123,null,121,null,122]
[51,"HORTH Olivier","PIKACHU","GISORS SPORT",110,null,122,null,116]
[52,"GACHTOURI Shakira","NOISETTE","GISORS SPORT",95,null,95,2,94]
[53,"VERMANDE Matteo","NOISETTE","GISORS SPORT",96,3,99,null,96]
[54,"SELBONNE Tymothé","PIKACHU","GISORS SPORT",130,null,114,null,122]
[55,"BUCAILLE Emmanuella","LOOPING","APEI Centre Manche",106,2,103,5,101]
[56,"LEGUEURLIER Guillaume","MULTAN","APEI Centre Manche",83,4,82,2,79.5]
[57,"AMIOT Emilie","HUGO","APEI Centre Manche",111,null,116,null,113.5]
[58,"BIENFAIT Alexandre","LOOPING","Les rênes de la vie (ITEP)",124,null,117,null,120.5]
[59,"HUMBERT Antonin","NOISETTE","Les rênes de la vie (ITEP)",113,null,116,null,114.5]
[60,"FREMONT Louis","NOISETTE","Les rênes de la vie (ITEP)",107,2,116,null,110.5]
[61,"KELLERN Enzo","LOOPING","Les rênes de la vie (ITEP)",107,null,111,null,109]
[62,"DEBRIL Sofian","KERIS","Adapt EQUIFUN",115,null,126,null,120.5]
[63,"BONTE Tom","JIMY","Adapt EQUIFUN",122,null,127,null,124.5]
[64,"SANTERRE Yohann","FLAMENCO","Adapt EQUIFUN",118,null,116,null,117]
[65,"GALETTI Manon","KERIS","Adapt EQUIFUN",118,null,123,null,{"$f":"(E72-F72+G72-H72)/2","v":120.5}]
[66,"NEUQUELMAN Laurianne","OSIRIS","Adapt EQUIFUN",127,null,122,null,124.5]
[67,"GIVAUDAN Jason","OSIRIS","Adapt EQUIFUN",121,null,119,null,120]
[null,null,null,null,null,null,null,null,0]
[null,null,null,null,null,null,null,null,0]
[null,null,null,null,null,null,null,null,0]
[null,null,null,null,null,null,null,null,0]
[null,null,null,null,null,null,null,null,0]
[null,null,null,null,null,null,null,null,0]
[null,null,null,null,null,null,null,null,0]
[null,null,null,null,null,null,null,null,0]
[null,null,null,null,null,null,null,null,0]
[null,null,null,null,null,null,null,null,0]
[null,null,null,null,null,null,null,null,0]
[null,null,null,null,null,null,null,null,0]
[null,null,null,null,null,null,null,null,0]
[null,null,null,null,null,null,null,null,0]
[null,null,null,null,null,null,null,null,0]
[null,null,null,null,null,null,null,null,0]
[null,null,null,null,null,null,null,null,0]
[null,null,null,null,null,null,null,null,0]
[null,null,null,null,null,null,null,null,0]
[null,null,null,null,null,null,null,null,0]
[null,null,null,null,null,null,null,null,0]
[null,null,null,null,null,null,null,null,0]
[null,null,null,null,null,null,null,null,0]

{"sheet":"CSO","index":1,"n_rows":40,"n_cols":8,"rows_kept":40,"cut":false,"hidden":false,"merged":[[0,0,0,7],[1,0,1,7],[2,0,2,7]]}
["CHAMPIONNAT DE FRANCE SPORT ADAPTE EQUITATION"]
["19 et 20 JUIN 2014 - LES RENES DE LA VIE - SAINT LO"]
["CSO - DIVISION 3 JEUNES"]
[]
[]
[null,"Nombre de partants :",{"$f":"COUNTA(C8:C40)","v":0}]
["Dossard","Cavalier","Cheval","Association","Pénalités piste","Note style","TOTAL","Classement"]
[null,null,null,null,null,null,{"$f":"F8-E8","v":0}]
[null,null,null,null,null,null,0]
[null,null,null,null,null,null,0]
[null,null,null,null,null,null,0]
[null,null,null,null,null,null,0]
[null,null,null,null,null,null,0]
[null,null,null,null,null,null,0]
[null,null,null,null,null,null,0]
[null,null,null,null,null,null,0]
[null,null,null,null,null,null,0]
[null,null,null,null,null,null,0]
[null,null,null,null,null,null,0]
[null,null,null,null,null,null,0]
[null,null,null,null,null,null,0]
[null,null,null,null,null,null,0]
[null,null,null,null,null,null,0]
[null,null,null,null,null,null,0]
[null,null,null,null,null,null,0]
[null,null,null,null,null,null,0]
[null,null,null,null,null,null,0]
[null,null,null,null,null,null,0]
[null,null,null,null,null,null,0]
[null,null,null,null,null,null,0]
[null,null,null,null,null,null,0]
[null,null,null,null,null,null,0]
[null,null,null,null,null,null,0]
[null,null,null,null,null,null,0]
[null,null,null,null,null,null,0]
[null,null,null,null,null,null,0]
[null,null,null,null,null,null,0]
[null,null,null,null,null,null,0]
[null,null,null,null,null,null,0]
[null,null,null,null,null,null,0]

{"sheet":"CROSS","index":2,"n_rows":40,"n_cols":11,"rows_kept":40,"cut":false,"hidden":false,"merged":[[0,0,0,10],[1,0,1,10],[2,0,2,10]]}
["CHAMPIONNAT DE FRANCE SPORT ADAPTE EQUITATION"]
["19 et 20 JUIN 2014 - LES RENES DE LA VIE - SAINT LO"]
["CROSS - DIVISION 3 JEUNES"]
[]
[]
[null,"Nombre de partants :",{"$f":"COUNTA(C8:C40)","v":0},null,"Tps maxi :",83]
["Dossard","Cavalier","Cheval","Association","Pénalités cross","Temps cross","Pénalités Tps","Total Pénalités","Note style","TOTAL","Classement"]
[null,null,null,null,null,null,{"$f":"IF(($F$6-F8)>15,10,IF(($F$6-F8)<0,($F$6-F8)*-0.5,0))","v":10},{"$f":"E8+G8","v":10},null,{"$f":"I8-H8","v":-10}]
[null,null,null,null,null,null,10,10,null,-10]
[null,null,null,null,null,null,10,10,null,-10]
[null,null,null,null,null,null,10,10,null,-10]
[null,null,null,null,null,null,10,10,null,-10]
[null,null,null,null,null,null,10,10,null,-10]
[null,null,null,null,null,null,10,10,null,-10]
[null,null,null,null,null,null,10,10,null,-10]
[null,null,null,null,null,null,10,10,null,-10]
[null,null,null,null,null,null,10,10,null,-10]
[null,null,null,null,null,null,10,10,null,-10]
[null,null,null,null,null,null,10,10,null,-10]
[null,null,null,null,null,null,10,10,null,-10]
[null,null,null,null,null,null,10,10,null,-10]
[null,null,null,null,null,null,10,10,null,-10]
[null,null,null,null,null,null,10,10,null,-10]
[null,null,null,null,null,null,10,10,null,-10]
[null,null,null,null,null,null,10,10,null,-10]
[null,null,null,null,null,null,10,10,null,-10]
[null,null,null,null,null,null,10,10,null,-10]
[null,null,null,null,null,null,10,10,null,-10]
[null,null,null,null,null,null,10,10,null,-10]
[null,null,null,null,null,null,10,10,null,-10]
[null,null,null,null,null,null,10,10,null,-10]
[null,null,null,null,null,null,10,10,null,-10]
[null,null,null,null,null,null,10,10,null,-10]
[null,null,null,null,null,null,10,10,null,-10]
[null,null,null,null,null,null,10,10,null,-10]
[null,null,null,null,null,null,10,10,null,-10]
[null,null,null,null,null,null,10,10,null,-10]
[null,null,null,null,null,null,10,10,null,-10]
[null,null,null,null,null,null,10,10,null,-10]
[null,null,null,null,null,null,10,10,null,-10]

{"sheet":"EQUIFUN","index":3,"n_rows":98,"n_cols":10,"rows_kept":98,"cut":false,"hidden":false,"merged":[[0,0,0,9],[1,0,1,9],[2,0,2,9]]}
["CHAMPIONNAT DE FRANCE SPORT ADAPTE EQUITATION"]
["19 et 20 JUIN 2014 - LES RENES DE LA VIE - SAINT LO"]
["EQUIFUN - DIVISION 3 JEUNES"]
[]
[]
[null,"Nombre de partants :",{"$f":"COUNTA(B68:B98)","v":6}]
["Dossard","Cavalier","Cheval","Association","Juge 1","Juge 2","Pénalités","TOTAL","Temps","Classement"]
[1,"GRAMONT Florian","TIC","APEI Centre Manche IME La Fresnelière",92,118,2,{"$f":"E8+F8-G8","v":208},73]
[2,"COTENTIN Pierre-Louis","INDIENNE","APEI Centre Manche IME La Fresnelière",122,91,2,211,69]
[3,"LEBACHELEY Emilia","POLY","APEI Centre Manche IME La Fresnelière",84,103,2,185,120]
[4,"DUFOUR Robert","NOKER","APEI Centre Manche IME La Fresnelière",110,86,null,196,106]
[5,"FOURNIER Samantha","OPERA","APEI Centre Manche IME La Fresnelière",88,115,2,201,100]
[6,"GAILDRAT Félix","PERSO PAL","Le pied à l'étrier",92,74,null,166,107]
[7,"HARLEY Joyan","PERSO PAL","Le pied à l'étrier",76,100,2,174,120]
[8,"HAZI Samy","PERSO PAL","Le pied à l'étrier",109,86,null,195,107]
[9,"POWER Wayne","PERSO PAL","Le pied à l'étrier",81,106,null,187,86]
[10,"DIDIER Jérémie","OSIRIS","EYBENS Sport adapté",75,92,null,167,150]
[11,"ESTEVES Manuel","PERSO TILLEUILS","Centre Equestre des Tilleuls",109,94,null,203,78]
[12,"DIAWARA Kalilou","PERSO TILLEUILS","Centre Equestre des Tilleuls",105,93,null,198,66]
[13,"FERRARY Aurore","PERSO TILLEUILS","Centre Equestre des Tilleuls",95,82,null,177,128]
[14,"BANANI Jad","PERSO TILLEUILS","Centre Equestre des Tilleuls",76,100,null,176,129]
[15,"PETIT FLEURY Emilie","PERSO TILLEUILS","Centre Equestre des Tilleuls",72,95,null,167,156]
[16,"BILLERES Jessica","PERSO TILLEUILS","Centre Equestre des Tilleuls",112,80,null,192,60]
[17,"MONNIER Nicolas","NO NAME","ASAL 39",91,120,null,211,74]
[18,"MAHAMDI Nassim","NO NAME","ASAL 39",115,92,null,207,64]
[20,"Brisset Lambert","TIC","Les rênes de la vie (SAISMO 21)",80,93,null,173,115]
[21,"BENADJI Nabil","NENUPHAR","Coppe Atout Sport",84,103,null,187,96]
[22,"BOSCHE Nicolas","QUETZAL","Coppe Atout Sport",70,90,4,156,177]
[23,"BONTE Charlotte","NENUPHAR","Coppe Atout Sport",81,95,null,176,123]
[24,"DUPORTAIL Emeline","QUETZAL","Coppe Atout Sport",91,71,4,158,134]
[25,"DUPORT Sébastien","KERIS","Coppe Atout Sport",61,69,12,118,139]
[26,"POUCHELE Ophélie","MULTAN","Coppe Atout Sport",74,92,5,161,110]
[27,"STAESSEN Cédric","OSIRIS","Coppe Atout Sport",95,82,null,177,127]
[28,"CARNEY Amandine","MULTAN","Coppe Atout Sport",56,87,6,137,155]
[29,"NOYELLE Guillaume","MULTAN","Coppe Atout Sport",97,75,6,166,133]
[30,"VANBLEU Jérémy","NENUPHAR","Coppe Atout Sport",83,98,null,181,103]
[31,"VIDEAU Appoline","NO NAME","Les rênes de la vie (Les Pieux)",82,104,null,186,82]
[32,"GARNIER Gwendoline","KERIS","Association Sportive IME de Quimperlé",104,92,null,196,90]
[33,"RIVALLAIN Irène","KERIS","Association Sportive IME de Quimperlé",90,112,null,202,75]
[34,"FOLLIOT Sandy","IROINE","APEI Centre Manche SESSAD",119,91,2,208,80]
[35,"DUVAL Jérémy","JIMBA","APEI Centre Manche SESSAD",87,114,2,199,84]
[36,"MABIRE Léo","JIMBA","APEI Centre Manche SESSAD",117,97,null,214,66]
[37,"BIREE Nicolas","TIC","APEI Centre Manche SESSAD",97,120,2,215,65]
[38,"ROGER Lucas","POLY","APEI Centre Manche SESSAD",104,71,2,173,103]
[39,"DUBOURGUAIS Dylan","TIC","APEI Centre Manche SESSAD",113,91,null,204,75]
[40,"METAIRIE Manon","POLY","APEI Centre Manche IME Maurice Marie",108,75,2,181,145]
[41,"DESFONTAINES Kelly","POLY","APEI Centre Manche IME Maurice Marie",80,99,2,177,135]
[42,"FLEUNY Louis","OPERA","APEI Centre Manche IME Maurice Marie",79,104,2,181,132]
[43,"SUZANNE Rémi","NOKER","APEI Centre Manche IME Maurice Marie",98,80,null,178,119]
[44,"PLEY Jean-Claude","NOKER","APEI Centre Manche IME Maurice Marie",78,102,null,180,85]
[45,"BOCHKOVITCH Maud","LOOPING","Tropagalo",88,101,null,189,74]
[46,"SOLER Mathilde","NOISETTE","Tropagalo",95,67,6,156,143]
[47,"OLIVIER Alexandre","OSIRIS","Tropagalo",86,102,null,188,88]
[48,"NONCHE Nicolas","MULTAN","GISORS SPORT",null,null,null,0,null,"NP"]
[49,"MAYEUR Loïc","JIMY","GISORS SPORT",118,95,null,213,65]
[50,"STRADY Ryan","OSIRIS","GISORS SPORT",96,121,null,217,70]
[51,"HORTH Olivier","PIKACHU","GISORS SPORT",112,89,null,201,62]
[52,"GACHTOURI Shakira","NOISETTE","GISORS SPORT",109,77,null,186,61]
[53,"VERMANDE Matteo","NOISETTE","GISORS SPORT",112,78,null,190,95]
[54,"SELBONNE Tymothé","PIKACHU","GISORS SPORT",82,117,null,199,60]
[55,"BUCAILLE Emmanuella","LOOPING","APEI Centre Manche",80,98,null,178,95]
[56,"LEGUEURLIER Guillaume","MULTAN","APEI Centre Manche",68,85,null,153,101]
[57,"AMIOT Emilie","HUGO","APEI Centre Manche",106,89,null,195,76]
[58,"BIENFAIT Alexandre","LOOPING","Les rênes de la vie (ITEP)",116,97,null,213,56]
[59,"HUMBERT Antonin","NOISETTE","Les rênes de la vie (ITEP)",94,112,null,206,57]
[60,"FREMONT Louis","NOISETTE","Les rênes de la vie (ITEP)",90,102,null,192,63]
[61,"KELLERN Enzo","LOOPING","Les rênes de la vie (ITEP)",null,null,null,0,null,"NP"]
[62,"DEBRIL Sofian","KERIS","Adapt EQUIFUN",120,91,null,211,55]
[63,"BONTE Tom","JIMY","Adapt EQUIFUN",115,97,null,212,51]
[64,"SANTERRE Yohann","FLAMENCO","Adapt EQUIFUN",85,101,null,186,96]
[65,"GALETTI Manon","KERIS","Adapt EQUIFUN",114,98,null,212,55]
[66,"NEUQUELMAN Laurianne","OSIRIS","Adapt EQUIFUN",105,97,null,{"$f":"E72+F72-G72","v":202},85]
[67,"GIVAUDAN Jason","OSIRIS","Adapt EQUIFUN",85,104,null,{"$f":"E73+F73-G73","v":189},82]
[null,null,null,null,null,null,null,{"$f":"E74+F74-G74","v":0}]
[null,null,null,null,null,null,null,0]
[null,null,null,null,null,null,null,0]
[null,null,null,null,null,null,null,0]
[null,null,null,null,null,null,null,0]
[null,null,null,null,null,null,null,0]
[null,null,null,null,null,null,null,0]
[null,null,null,null,null,null,null,0]
[null,null,null,null,null,null,null,0]
[null,null,null,null,null,null,null,0]
[null,null,null,null,null,null,null,0]
[null,null,null,null,null,null,null,0]
[null,null,null,null,null,null,null,0]
[null,null,null,null,null,null,null,0]
[null,null,null,null,null,null,null,0]
[null,null,null,null,null,null,null,0]
[null,null,null,null,null,null,null,0]
[null,null,null,null,null,null,null,0]
[null,null,null,null,null,null,null,0]
[null,null,null,null,null,null,null,0]
[null,null,null,null,null,null,null,0]
[null,null,null,null,null,null,null,0]
[null,null,null,null,null,null,null,0]
[null,null,null,null,null,null,null,0]
[null,null,null,null,null,null,null,0]

{"sheet":"ATTELAGE","index":4,"n_rows":40,"n_cols":16,"rows_kept":40,"cut":false,"hidden":false,"merged":[[0,0,0,15],[1,0,1,15],[2,0,2,15]]}
["CHAMPIONNAT DE FRANCE SPORT ADAPTE EQUITATION"]
["19 et 20 JUIN 2014 - LES RENES DE LA VIE - SAINT LO"]
["ATTELAGE - DIVISION 1 JEUNES"]
[]
[]
[null,"Nombre de partants :",{"$f":"COUNTA(C8:C40)","v":0},null,null,null,null,null,"Tps maxi :",173]
["Dossard","Cavalier","Cheval","Association","Pénalités Piste","Pénalités Marathon","Note style cavalier","Total 1ère Manche","Pénalités Piste","Pénalités Marathon","Note style cavalier","Temps réalisé","Pénalités Temps","Total 2ème Manche","TOTAL FINAL","Classement"]
[null,null,null,null,null,null,null,{"$f":"G8-F8-E8","v":0},null,null,null,null,{"$f":"IF(L8>$J$6,(L8-$J$6)*0.5,0)","v":0},{"$f":"K8-J8-I8-M8","v":0},{"$f":"H8+N8","v":0}]
[null,null,null,null,null,null,null,0,null,null,null,null,0,0,0]
[null,null,null,null,null,null,null,0,null,null,null,null,0,0,0]
[null,null,null,null,null,null,null,0,null,null,null,null,0,0,0]
[null,null,null,null,null,null,null,0,null,null,null,null,0,0,0]
[null,null,null,null,null,null,null,0,null,null,null,null,0,0,0]
[null,null,null,null,null,null,null,0,null,null,null,null,0,0,0]
[null,null,null,null,null,null,null,0,null,null,null,null,0,0,0]
[null,null,null,null,null,null,null,0,null,null,null,null,0,0,0]
[null,null,null,null,null,null,null,0,null,null,null,null,0,0,0]
[null,null,null,null,null,null,null,0,null,null,null,null,0,0,0]
[null,null,null,null,null,null,null,0,null,null,null,null,0,0,0]
[null,null,null,null,null,null,null,0,null,null,null,null,0,0,0]
[null,null,null,null,null,null,null,0,null,null,null,null,0,0,0]
[null,null,null,null,null,null,null,0,null,null,null,null,0,0,0]
[null,null,null,null,null,null,null,0,null,null,null,null,0,0,0]
[null,null,null,null,null,null,null,0,null,null,null,null,0,0,0]
[null,null,null,null,null,null,null,0,null,null,null,null,0,0,0]
[null,null,null,null,null,null,null,0,null,null,null,null,0,0,0]
[null,null,null,null,null,null,null,0,null,null,null,null,0,0,0]
[null,null,null,null,null,null,null,0,null,null,null,null,0,0,0]
[null,null,null,null,null,null,null,0,null,null,null,null,0,0,0]
[null,null,null,null,null,null,null,0,null,null,null,null,0,0,0]
[null,null,null,null,null,null,null,0,null,null,null,null,0,0,0]
[null,null,null,null,null,null,null,0,null,null,null,null,0,0,0]
[null,null,null,null,null,null,null,0,null,null,null,null,0,0,0]
[null,null,null,null,null,null,null,0,null,null,null,null,0,0,0]
[null,null,null,null,null,null,null,0,null,null,null,null,0,0,0]
[null,null,null,null,null,null,null,0,null,null,null,null,0,0,0]
[null,null,null,null,null,null,null,0,null,null,null,null,0,0,0]
[null,null,null,null,null,null,null,0,null,null,null,null,0,0,0]
[null,null,null,null,null,null,null,0,null,null,null,null,0,0,0]
[null,null,null,null,null,null,null,0,null,null,null,null,0,0,0]

{"sheet":"COMBINE","index":5,"n_rows":91,"n_cols":8,"rows_kept":91,"cut":false,"hidden":false,"merged":[[0,0,0,7],[1,0,1,7],[2,0,2,7]]}
["CHAMPIONNAT DE FRANCE SPORT ADAPTE EQUITATION"]
["19 et 20 JUIN 2014 - LES RENES DE LA VIE - SAINT LO"]
["COMBINE - DIVISION 3 JEUNES"]
[]
[]
[null,"Nombre de partants :",{"$f":"COUNTA(B8:B91)","v":66}]
["Dossard","Cavalier","Cheval","Association","Total Dressage","Total Equifun","TOTAL","Classement"]
[1,"GRAMONT Florian","TIC","APEI Centre Manche IME La Fresnelière",{"$f":"IF(A8=0,0,VLOOKUP(A8,Dressage,9))","v":123.5},{"$f":"IF(A8=0,0,VLOOKUP(A8,EQUIFUN,8))","v":208},{"$f":"IF(A8=0,0,SUM(E8:F8))","v":331.5}]
[2,"COTENTIN Pierre-Louis","INDIENNE","APEI Centre Manche IME La Fresnelière",122,211,333]
[3,"LEBACHELEY Emilia","POLY","APEI Centre Manche IME La Fresnelière",121.5,185,306.5]
[4,"DUFOUR Robert","NOKER","APEI Centre Manche IME La Fresnelière",123.5,196,319.5]
[5,"FOURNIER Samantha","OPERA","APEI Centre Manche IME La Fresnelière",133,201,334]
[6,"GAILDRAT Félix","PERSO PAL","Le pied à l'étrier",112,166,278]
[7,"HARLEY Joyan","PERSO PAL","Le pied à l'étrier",118,174,292]
[8,"HAZI Samy","PERSO PAL","Le pied à l'étrier",129.5,195,324.5]
[9,"POWER Wayne","PERSO PAL","Le pied à l'étrier",112,187,299]
[10,"DIDIER Jérémie","OSIRIS","EYBENS Sport adapté",84.5,167,251.5]
[11,"ESTEVES Manuel","PERSO TILLEUILS","Centre Equestre des Tilleuls",115.5,203,318.5]
[12,"DIAWARA Kalilou","PERSO TILLEUILS","Centre Equestre des Tilleuls",119.5,198,317.5]
[13,"FERRARY Aurore","PERSO TILLEUILS","Centre Equestre des Tilleuls",89.5,177,266.5]
[14,"BANANI Jad","PERSO TILLEUILS","Centre Equestre des Tilleuls",113.5,176,289.5]
[15,"PETIT FLEURY Emilie","PERSO TILLEUILS","Centre Equestre des Tilleuls",87,167,254]
[16,"BILLERES Jessica","PERSO TILLEUILS","Centre Equestre des Tilleuls",130,192,322]
[17,"MONNIER Nicolas","NO NAME","ASAL 39",123,211,334]
[18,"MAHAMDI Nassim","NO NAME","ASAL 39",120,207,327]
[20,"Brisset Lambert","TIC","Les rênes de la vie (SAISMO 21)",112.5,173,285.5]
[21,"BENADJI Nabil","NENUPHAR","Coppe Atout Sport",120,187,307]
[22,"BOSCHE Nicolas","QUETZAL","Coppe Atout Sport",94.5,156,250.5]
[23,"BONTE Charlotte","NENUPHAR","Coppe Atout Sport",114.5,176,290.5]
[24,"DUPORTAIL Emeline","QUETZAL","Coppe Atout Sport",110.5,158,268.5]
[25,"DUPORT Sébastien","KERIS","Coppe Atout Sport",76.5,118,194.5]
[26,"POUCHELE Ophélie","MULTAN","Coppe Atout Sport",{"$f":"IF(A32=0,0,VLOOKUP(A32,Dressage,9))","v":116},{"$f":"IF(A32=0,0,VLOOKUP(A32,EQUIFUN,8))","v":161},{"$f":"IF(A32=0,0,SUM(E32:F32))","v":277}]
[27,"STAESSEN Cédric","OSIRIS","Coppe Atout Sport",122.5,177,299.5]
[28,"CARNEY Amandine","MULTAN","Coppe Atout Sport",99,137,236]
[29,"NOYELLE Guillaume","MULTAN","Coppe Atout Sport",114.5,166,280.5]
[30,"VANBLEU Jérémy","NENUPHAR","Coppe Atout Sport",122,181,303]
[31,"VIDEAU Appoline","NO NAME","Les rênes de la vie (Les Pieux)",87,186,273]
[32,"GARNIER Gwendoline","KERIS","Association Sportive IME de Quimperlé",105.5,196,301.5]
[33,"RIVALLAIN Irène","KERIS","Association Sportive IME de Quimperlé",118,202,320]
[34,"FOLLIOT Sandy","IROINE","APEI Centre Manche SESSAD",127,208,335]
[35,"DUVAL Jérémy","JIMBA","APEI Centre Manche SESSAD",{"$f":"IF(A41=0,0,VLOOKUP(A41,Dressage,9))","v":108.5},{"$f":"IF(A41=0,0,VLOOKUP(A41,EQUIFUN,8))","v":199},{"$f":"IF(A41=0,0,SUM(E41:F41))","v":307.5}]
[36,"MABIRE Léo","JIMBA","APEI Centre Manche SESSAD",122,214,336]
[37,"BIREE Nicolas","TIC","APEI Centre Manche SESSAD",122.5,215,337.5]
[38,"ROGER Lucas","POLY","APEI Centre Manche SESSAD",121,173,294]
[39,"DUBOURGUAIS Dylan","TIC","APEI Centre Manche SESSAD",124,204,328]
[40,"METAIRIE Manon","POLY","APEI Centre Manche IME Maurice Marie",109,181,290]
[41,"DESFONTAINES Kelly","POLY","APEI Centre Manche IME Maurice Marie",107,177,284]
[42,"FLEUNY Louis","OPERA","APEI Centre Manche IME Maurice Marie",116,181,297]
[43,"SUZANNE Rémi","NOKER","APEI Centre Manche IME Maurice Marie",115,178,293]
[44,"PLEY Jean-Claude","NOKER","APEI Centre Manche IME Maurice Marie",109.5,180,289.5]
[45,"BOCHKOVITCH Maud","LOOPING","Tropagalo",118.5,189,307.5]
[46,"SOLER Mathilde","NOISETTE","Tropagalo",113,156,269]
[47,"OLIVIER Alexandre","OSIRIS","Tropagalo",105,188,293]
[48,"NONCHE Nicolas","MULTAN","GISORS SPORT",0,0,0]
[49,"MAYEUR Loïc","JIMY","GISORS SPORT",122,213,335]
[50,"STRADY Ryan","OSIRIS","GISORS SPORT",122,217,339]
[51,"HORTH Olivier","PIKACHU","GISORS SPORT",116,201,317]
[52,"GACHTOURI Shakira","NOISETTE","GISORS SPORT",94,186,280]
[53,"VERMANDE Matteo","NOISETTE","GISORS SPORT",96,190,286]
[54,"SELBONNE Tymothé","PIKACHU","GISORS SPORT",122,199,321]
[55,"BUCAILLE Emmanuella","LOOPING","APEI Centre Manche",{"$f":"IF(A61=0,0,VLOOKUP(A61,Dressage,9))","v":101},178,{"$f":"IF(A61=0,0,SUM(E61:F61))","v":279}]
[56,"LEGUEURLIER Guillaume","MULTAN","APEI Centre Manche",79.5,153,232.5]
[57,"AMIOT Emilie","HUGO","APEI Centre Manche",113.5,195,308.5]
[58,"BIENFAIT Alexandre","LOOPING","Les rênes de la vie (ITEP)",120.5,213,333.5]
[59,"HUMBERT Antonin","NOISETTE","Les rênes de la vie (ITEP)",114.5,206,320.5]
[60,"FREMONT Louis","NOISETTE","Les rênes de la vie (ITEP)",110.5,192,302.5]
[61,"KELLERN Enzo","LOOPING","Les rênes de la vie (ITEP)",109,0,109]
[62,"DEBRIL Sofian","KERIS","Adapt EQUIFUN",120.5,211,331.5]
[63,"BONTE Tom","JIMY","Adapt EQUIFUN",124.5,212,336.5]
[64,"SANTERRE Yohann","FLAMENCO","Adapt EQUIFUN",117,186,303]
[65,"GALETTI Manon","KERIS","Adapt EQUIFUN",120.5,212,332.5]
[66,"NEUQUELMAN Laurianne","OSIRIS","Adapt EQUIFUN",124.5,{"$f":"IF(A72=0,0,VLOOKUP(A72,EQUIFUN,8))","v":202},326.5]
[67,"GIVAUDAN Jason","OSIRIS","Adapt EQUIFUN",120,189,309]
[null,null,null,null,0,0,0]
[null,null,null,null,0,0,0]
[null,null,null,null,0,0,0]
[null,null,null,null,0,0,0]
[null,null,null,null,0,0,0]
[null,null,null,null,0,0,0]
[null,null,null,null,0,0,0]
[null,null,null,null,0,0,0]
[null,null,null,null,0,0,0]
[null,null,null,null,0,0,0]
[null,null,null,null,0,0,0]
[null,null,null,null,0,0,0]
[null,null,null,null,0,0,0]
[null,null,null,null,0,0,0]
[null,null,null,null,0,0,0]
[null,null,null,null,0,0,0]
[null,null,null,null,0,0,0]
[null,null,null,null,0,0,0]

{"sheet":"COMBINE FINAL","index":6,"n_rows":71,"n_cols":8,"rows_kept":71,"cut":false,"hidden":false,"merged":[[0,0,0,7],[1,0,1,7],[2,0,2,7]]}
["CHAMPIONNAT DE FRANCE SPORT ADAPTE EQUITATION"]
["19 et 20 JUIN 2014 - LES RENES DE LA VIE - SAINT LO"]
["COMBINE - DIVISION 3 JEUNES"]
[]
[]
[null,"Nombre de partants :",{"$f":"COUNTA(B8:B71)","v":64}]
["Dossard","Cavalier","Cheval","Association","Total Dressage","Total Equifun","TOTAL","Classement"]
[50,"STRADY Ryan","OSIRIS","GISORS SPORT",{"$f":"IF(A8=0,0,VLOOKUP(A8,Dressage,9))","v":122},{"$f":"IF(A8=0,0,VLOOKUP(A8,EQUIFUN,8))","v":217},{"$f":"IF(A8=0,0,SUM(E8:F8))","v":339},1]
[37,"BIREE Nicolas","TIC","APEI Centre Manche SESSAD",122.5,215,337.5,2]
[63,"BONTE Tom","JIMY","Adapt EQUIFUN",124.5,212,336.5,3]
[36,"MABIRE Léo","JIMBA","APEI Centre Manche SESSAD",122,214,336,4]
[34,"FOLLIOT Sandy","IROINE","APEI Centre Manche SESSAD",127,208,335,5]
[49,"MAYEUR Loïc","JIMY","GISORS SPORT",122,213,335,5]
[5,"FOURNIER Samantha","OPERA","APEI Centre Manche IME La Fresnelière",133,201,334,7]
[17,"MONNIER Nicolas","NO NAME","ASAL 39",123,211,334,7]
[58,"BIENFAIT Alexandre","LOOPING","Les rênes de la vie (ITEP)",120.5,213,333.5,9]
[2,"COTENTIN Pierre-Louis","INDIENNE","APEI Centre Manche IME La Fresnelière",122,211,333,10]
[65,"GALETTI Manon","KERIS","Adapt EQUIFUN",120.5,212,332.5,11]
[1,"GRAMONT Florian","TIC","APEI Centre Manche IME La Fresnelière",123.5,208,331.5,12]
[62,"DEBRIL Sofian","KERIS","Adapt EQUIFUN",120.5,211,331.5,12]
[39,"DUBOURGUAIS Dylan","TIC","APEI Centre Manche SESSAD",124,204,328,14]
[18,"MAHAMDI Nassim","NO NAME","ASAL 39",120,207,327,15]
[66,"NEUQUELMAN Laurianne","OSIRIS","Adapt EQUIFUN",124.5,202,326.5,16]
[8,"HAZI Samy","PERSO PAL","Le pied à l'étrier",129.5,195,324.5,17]
[16,"BILLERES Jessica","PERSO TILLEUILS","Centre Equestre des Tilleuls",130,192,322,18]
[54,"SELBONNE Tymothé","PIKACHU","GISORS SPORT",122,199,321,19]
[59,"HUMBERT Antonin","NOISETTE","Les rênes de la vie (ITEP)",114.5,206,320.5,20]
[33,"RIVALLAIN Irène","KERIS","Association Sportive IME de Quimperlé",118,202,320,21]
[4,"DUFOUR Robert","NOKER","APEI Centre Manche IME La Fresnelière",123.5,196,319.5,22]
[11,"ESTEVES Manuel","PERSO TILLEUILS","Centre Equestre des Tilleuls",115.5,203,318.5,23]
[12,"DIAWARA Kalilou","PERSO TILLEUILS","Centre Equestre des Tilleuls",119.5,198,317.5,24]
[51,"HORTH Olivier","PIKACHU","GISORS SPORT",116,201,317,25]
[67,"GIVAUDAN Jason","OSIRIS","Adapt EQUIFUN",120,189,309,26]
[57,"AMIOT Emilie","HUGO","APEI Centre Manche",113.5,195,308.5,27]
[35,"DUVAL Jérémy","JIMBA","APEI Centre Manche SESSAD",108.5,199,307.5,28]
[45,"BOCHKOVITCH Maud","LOOPING","Tropagalo",118.5,189,307.5,28]
[21,"BENADJI Nabil","NENUPHAR","Coppe Atout Sport",120,187,307,30]
[3,"LEBACHELEY Emilia","POLY","APEI Centre Manche IME La Fresnelière",121.5,185,306.5,31]
[30,"VANBLEU Jérémy","NENUPHAR","Coppe Atout Sport",122,181,303,32]
[64,"SANTERRE Yohann","FLAMENCO","Adapt EQUIFUN",{"$f":"IF(A40=0,0,VLOOKUP(A40,Dressage,9))","v":117},{"$f":"IF(A40=0,0,VLOOKUP(A40,EQUIFUN,8))","v":186},{"$f":"IF(A40=0,0,SUM(E40:F40))","v":303},32]
[60,"FREMONT Louis","NOISETTE","Les rênes de la vie (ITEP)",110.5,192,302.5,34]
[32,"GARNIER Gwendoline","KERIS","Association Sportive IME de Quimperlé",105.5,196,301.5,35]
[27,"STAESSEN Cédric","OSIRIS","Coppe Atout Sport",122.5,177,299.5,36]
[9,"POWER Wayne","PERSO PAL","Le pied à l'étrier",112,187,299,37]
[42,"FLEUNY Louis","OPERA","APEI Centre Manche IME Maurice Marie",116,181,297,38]
[38,"ROGER Lucas","POLY","APEI Centre Manche SESSAD",121,173,294,39]
[43,"SUZANNE Rémi","NOKER","APEI Centre Manche IME Maurice Marie",115,178,293,40]
[47,"OLIVIER Alexandre","OSIRIS","Tropagalo",105,188,293,40]
[7,"HARLEY Joyan","PERSO PAL","Le pied à l'étrier",118,174,292,42]
[23,"BONTE Charlotte","NENUPHAR","Coppe Atout Sport",114.5,176,290.5,43]
[40,"METAIRIE Manon","POLY","APEI Centre Manche IME Maurice Marie",109,181,290,44]
[14,"BANANI Jad","PERSO TILLEUILS","Centre Equestre des Tilleuls",113.5,176,289.5,45]
[44,"PLEY Jean-Claude","NOKER","APEI Centre Manche IME Maurice Marie",109.5,180,289.5,46]
[53,"VERMANDE Matteo","NOISETTE","GISORS SPORT",96,190,286,47]
[20,"Brisset Lambert","TIC","Les rênes de la vie (SAISMO 21)",112.5,173,285.5,48]
[41,"DESFONTAINES Kelly","POLY","APEI Centre Manche IME Maurice Marie",107,177,284,49]
[29,"NOYELLE Guillaume","MULTAN","Coppe Atout Sport",114.5,166,280.5,50]
[52,"GACHTOURI Shakira","NOISETTE","GISORS SPORT",94,186,280,51]
[55,"BUCAILLE Emmanuella","LOOPING","APEI Centre Manche",101,178,279,52]
[6,"GAILDRAT Félix","PERSO PAL","Le pied à l'étrier",112,166,278,53]
[26,"POUCHELE Ophélie","MULTAN","Coppe Atout Sport",116,161,277,54]
[31,"VIDEAU Appoline","NO NAME","Les rênes de la vie (Les Pieux)",87,186,273,55]
[46,"SOLER Mathilde","NOISETTE","Tropagalo",113,156,269,56]
[24,"DUPORTAIL Emeline","QUETZAL","Coppe Atout Sport",110.5,158,268.5,57]
[13,"FERRARY Aurore","PERSO TILLEUILS","Centre Equestre des Tilleuls",89.5,177,266.5,58]
[15,"PETIT FLEURY Emilie","PERSO TILLEUILS","Centre Equestre des Tilleuls",87,167,254,59]
[10,"DIDIER Jérémie","OSIRIS","EYBENS Sport adapté",84.5,167,251.5,60]
[22,"BOSCHE Nicolas","QUETZAL","Coppe Atout Sport",94.5,156,250.5,61]
[28,"CARNEY Amandine","MULTAN","Coppe Atout Sport",99,137,236,62]
[56,"LEGUEURLIER Guillaume","MULTAN","APEI Centre Manche",79.5,153,232.5,63]
[25,"DUPORT Sébastien","KERIS","Coppe Atout Sport",76.5,118,194.5,64]